[Event "Titled Tuesday Blitz September 13 Early 2022"]
[White "Aaditya Dhingra"]
[Black "Zhigalko, Sergei"]
[WhiteFideId "25678191"]
[BlackFideId "13502956"]
[WhiteElo "2514"]
[BlackElo "2909"]
[Result "0-1"]
[Round "01"]
[TimeControl "180+1"]
[Date "2022.09.13"]
[WhiteClock "0:00:18"]
[BlackClock "0:00:35"]

1. Nf3 {[%clk 0:02:57]}  d5 {[%clk 0:02:59]} 2. g3 {[%clk 0:02:57]}  c6 {[%clk 0:02:59]} 3. Bg2 {[%clk 0:02:58]}  Bg4 {[%clk 0:02:56]} 4. d3 {[%clk 0:02:58]}  Nd7 {[%clk 0:02:56]} 5. O-O {[%clk 0:02:58]}  e6 {[%clk 0:02:56]} 6. Nbd2 {[%clk 0:02:58]}  Bd6 {[%clk 0:02:56]} 7. e4 {[%clk 0:02:58]}  Ne7 {[%clk 0:02:56]} 8. Qe2 {[%clk 0:02:56]}  O-O {[%clk 0:02:56]} 9. h3 {[%clk 0:02:55]}  Bh5 {[%clk 0:02:56]} 10. Rd1 {[%clk 0:02:53]}  a5 {[%clk 0:02:56]} 11. Nf1 {[%clk 0:02:52]}  a4 {[%clk 0:02:54]} 12. a3 {[%clk 0:02:51]}  Re8 {[%clk 0:02:53]} 13. g4 {[%clk 0:02:50]}  Bg6 {[%clk 0:02:53]} 14. e5 {[%clk 0:02:49]}  Bc7 {[%clk 0:02:52]} 15. Ng3 {[%clk 0:02:47]}  c5 {[%clk 0:02:47]} 16. h4 {[%clk 0:02:31]}  h6 {[%clk 0:02:26]} 17. h5 {[%clk 0:02:30]}  Bh7 {[%clk 0:02:27]} 18. g5 {[%clk 0:02:31]}  Nc6 {[%clk 0:02:14]} 19. Bf4 {[%clk 0:01:55]}  hxg5 {[%clk 0:01:55]} 20. Bxg5 {[%clk 0:01:54]}  Qb8 {[%clk 0:01:33]} 21. h6 {[%clk 0:01:39]}  g6 {[%clk 0:01:20]} 22. c4 {[%clk 0:00:54]}  Ndxe5 {[%clk 0:01:16]} 23. Nxe5 {[%clk 0:00:52]}  Bxe5 {[%clk 0:01:12]} 24. Re1 {[%clk 0:00:50]}  Bxg3 {[%clk 0:01:07]} 25. fxg3 {[%clk 0:00:49]}  Qxg3 {[%clk 0:01:08]} 26. Bf6 {[%clk 0:00:41]}  Qf4 {[%clk 0:00:51]} 27. Bg7 {[%clk 0:00:37]}  Nd4 {[%clk 0:00:49]} 28. Qd1 {[%clk 0:00:31]}  Nf5 {[%clk 0:00:47]} 29. Be5 {[%clk 0:00:21]}  Qxh6 {[%clk 0:00:47]} 30. cxd5 {[%clk 0:00:21]}  exd5 {[%clk 0:00:48]} 31. Bxd5 {[%clk 0:00:21]}  Qg5+ {[%clk 0:00:35]} 32. Kf2 {[%clk 0:00:19]}  Rxe5 {[%clk 0:00:34]} 33. Rxe5 {[%clk 0:00:19]}  Qg3+ {[%clk 0:00:34]} 34. Kf1 {[%clk 0:00:18]}  Qxe5 {[%clk 0:00:35]} 0-1


[Site "https://www.chess.com"]

[Event "Titled Tuesday Blitz September 13 Early 2022"]
[White "Ahn, Hongjin"]
[Black "Sarana, Alexey"]
[WhiteFideId "13201492"]
[BlackFideId "24133795"]
[WhiteElo "2541"]
[BlackElo "3070"]
[Result "0-1"]
[Round "01"]
[TimeControl "180+1"]
[Date "2022.09.13"]
[WhiteClock "0:00:09"]
[BlackClock "0:00:31"]

1. c4 {[%clk 0:02:56]}  e6 {[%clk 0:02:59]} 2. Nf3 {[%clk 0:02:56]}  d5 {[%clk 0:02:59]} 3. e3 {[%clk 0:02:56]}  Nf6 {[%clk 0:02:59]} 4. Nc3 {[%clk 0:02:55]}  Bb4 {[%clk 0:02:58]} 5. Qc2 {[%clk 0:02:54]}  Nc6 {[%clk 0:02:56]} 6. a3 {[%clk 0:02:54]}  Bd6 {[%clk 0:02:54]} 7. d4 {[%clk 0:02:52]}  a6 {[%clk 0:02:52]} 8. c5 {[%clk 0:02:35]}  Be7 {[%clk 0:02:52]} 9. b4 {[%clk 0:02:35]}  Nd7 {[%clk 0:02:32]} 10. Bd3 {[%clk 0:02:29]}  f5 {[%clk 0:02:31]} 11. O-O {[%clk 0:02:26]}  Nf6 {[%clk 0:02:32]} 12. Bb2 {[%clk 0:02:19]}  Ne4 {[%clk 0:02:31]} 13. Ne2 {[%clk 0:02:16]}  O-O {[%clk 0:02:29]} 14. Ne5 {[%clk 0:02:10]}  Bd7 {[%clk 0:02:25]} 15. f3 {[%clk 0:02:04]}  Nf6 {[%clk 0:02:23]} 16. Nf4 {[%clk 0:01:52]}  Nxe5 {[%clk 0:02:15]} 17. dxe5 {[%clk 0:01:52]}  Ne8 {[%clk 0:02:15]} 18. e4 {[%clk 0:01:34]}  Bg5 {[%clk 0:02:14]} 19. Nh3 {[%clk 0:01:11]}  Be3+ {[%clk 0:02:14]} 20. Kh1 {[%clk 0:01:11]}  d4 {[%clk 0:02:09]} 21. f4 {[%clk 0:01:01]}  Kh8 {[%clk 0:01:59]} 22. Rf3 {[%clk 0:00:49]}  Bc6 {[%clk 0:01:58]} 23. Ng5 {[%clk 0:00:47]}  Qe7 {[%clk 0:01:53]} 24. Rh3 {[%clk 0:00:45]}  h6 {[%clk 0:01:53]} 25. exf5 {[%clk 0:00:44]}  exf5 {[%clk 0:01:51]} 26. Bxf5 {[%clk 0:00:43]}  Bxf4 {[%clk 0:01:42]} 27. Nf3 {[%clk 0:00:31]}  Bxf3 {[%clk 0:01:25]} 28. Rxf3 {[%clk 0:00:30]}  Qxe5 {[%clk 0:01:11]} 29. Be4 {[%clk 0:00:28]}  Nf6 {[%clk 0:01:09]} 30. Bxb7 {[%clk 0:00:27]}  Rab8 {[%clk 0:01:08]} 31. Bxa6 {[%clk 0:00:23]}  Bxh2 {[%clk 0:01:08]} 32. Raf1 {[%clk 0:00:20]}  Qh5 {[%clk 0:01:03]} 33. Rh3 {[%clk 0:00:20]}  Qe5 {[%clk 0:00:55]} 34. Rxh2 {[%clk 0:00:19]}  Ng4 {[%clk 0:00:55]} 35. Rh3 {[%clk 0:00:16]}  Rxf1+ {[%clk 0:00:49]} 36. Bxf1 {[%clk 0:00:17]}  Rf8 {[%clk 0:00:49]} 37. Qe2 {[%clk 0:00:16]}  Nf2+ {[%clk 0:00:30]} 38. Kg1 {[%clk 0:00:11]}  Nxh3+ {[%clk 0:00:31]} 39. gxh3 {[%clk 0:00:12]}  Qg3+ {[%clk 0:00:31]} 40. Bg2 {[%clk 0:00:08]}  d3 {[%clk 0:00:31]} 41. Qd2 {[%clk 0:00:05]}  Re8 {[%clk 0:00:24]} 42. Qxh6+ {[%clk 0:00:05]}  Kg8 {[%clk 0:00:24]} 43. Qxg7+ {[%clk 0:00:02]}  Qxg7 {[%clk 0:00:24]} 44. Bxg7 {[%clk 0:00:03]}  Kxg7 {[%clk 0:00:23]} 45. Bf3 {[%clk 0:00:03]}  d2 {[%clk 0:00:23]} 46. Kf2 {[%clk 0:00:03]}  Re1 {[%clk 0:00:23]} 47. b5 {[%clk 0:00:03]}  d1=Q {[%clk 0:00:21]} 48. Bxd1 {[%clk 0:00:04]}  Rxd1 {[%clk 0:00:22]} 49. a4 {[%clk 0:00:04]}  Rb1 {[%clk 0:00:20]} 50. Ke3 {[%clk 0:00:04]}  Kf6 {[%clk 0:00:21]} 51. Kd3 {[%clk 0:00:03]}  Ke6 {[%clk 0:00:20]} 52. Kc4 {[%clk 0:00:03]}  Kd7 {[%clk 0:00:21]} 53. h4 {[%clk 0:00:03]}  Rh1 {[%clk 0:00:21]} 54. Kb4 {[%clk 0:00:03]}  Rxh4+ {[%clk 0:00:20]} 55. Ka5 {[%clk 0:00:04]}  Kc8 {[%clk 0:00:21]} 56. b6 {[%clk 0:00:04]}  c6 {[%clk 0:00:21]} 57. b7+ {[%clk 0:00:02]}  Kc7 {[%clk 0:00:21]} 58. b8=Q+ {[%clk 0:00:01]}  Kxb8 {[%clk 0:00:21]} 59. Kb6 {[%clk 0:00:02]}  Rxa4 {[%clk 0:00:22]} 60. Kxc6 {[%clk 0:00:03]}  Ra1 {[%clk 0:00:22]} 61. Kd7 {[%clk 0:00:04]}  Rc1 {[%clk 0:00:23]} 62. Kc6 {[%clk 0:00:04]}  Kc8 {[%clk 0:00:23]} 63. Kb6 {[%clk 0:00:05]}  Kd7 {[%clk 0:00:24]} 64. Kb5 {[%clk 0:00:05]}  Kc7 {[%clk 0:00:24]} 65. Kb4 {[%clk 0:00:05]}  Kc6 {[%clk 0:00:25]} 66. Ka4 {[%clk 0:00:05]}  Rxc5 {[%clk 0:00:25]} 67. Kb4 {[%clk 0:00:05]}  Kd5 {[%clk 0:00:26]} 68. Kb3 {[%clk 0:00:06]}  Rc4 {[%clk 0:00:27]} 69. Kb2 {[%clk 0:00:06]}  Kc5 {[%clk 0:00:28]} 70. Kb3 {[%clk 0:00:07]}  Kb5 {[%clk 0:00:29]} 71. Ka3 {[%clk 0:00:07]}  Rc3+ {[%clk 0:00:29]} 72. Kb2 {[%clk 0:00:08]}  Kb4 {[%clk 0:00:30]} 73. Kb1 {[%clk 0:00:09]}  Kb3 {[%clk 0:00:30]} 74. Ka1 {[%clk 0:00:09]}  Rc1# {[%clk 0:00:31]} 0-1


[Site "https://www.chess.com"]

[Event "Titled Tuesday Blitz September 13 Early 2022"]
[White "Bilan, Danila"]
[Black "Hakobyan, Aram"]
[WhiteFideId "24161918"]
[BlackFideId "13306677"]
[WhiteElo "2524"]
[BlackElo "2946"]
[Result "0-1"]
[Round "01"]
[TimeControl "180+1"]
[Date "2022.09.13"]
[WhiteClock "0:00:01"]
[BlackClock "0:00:51"]

1. d4 {[%clk 0:02:56]}  Nf6 {[%clk 0:03:00]} 2. Nf3 {[%clk 0:02:56]}  e6 {[%clk 0:02:59]} 3. g3 {[%clk 0:02:56]}  b5 {[%clk 0:02:59]} 4. Bg2 {[%clk 0:02:57]}  Bb7 {[%clk 0:03:00]} 5. O-O {[%clk 0:02:58]}  c5 {[%clk 0:02:59]} 6. c3 {[%clk 0:02:57]}  Na6 {[%clk 0:03:00]} 7. Bg5 {[%clk 0:02:55]}  Be7 {[%clk 0:02:57]} 8. Nbd2 {[%clk 0:02:55]}  d5 {[%clk 0:02:55]} 9. Ne5 {[%clk 0:02:52]}  O-O {[%clk 0:02:55]} 10. e3 {[%clk 0:02:44]}  Rc8 {[%clk 0:02:54]} 11. h4 {[%clk 0:02:38]}  h6 {[%clk 0:02:54]} 12. Bf4 {[%clk 0:02:38]}  Ne8 {[%clk 0:02:44]} 13. Qh5 {[%clk 0:02:28]}  Nf6 {[%clk 0:02:39]} 14. Qe2 {[%clk 0:02:26]}  b4 {[%clk 0:02:39]} 15. Ng4 {[%clk 0:02:01]}  Nd7 {[%clk 0:02:15]} 16. Nf3 {[%clk 0:01:37]}  Nab8 {[%clk 0:02:03]} 17. Nfe5 {[%clk 0:01:32]}  Ba6 {[%clk 0:02:03]} 18. Nxh6+ {[%clk 0:01:19]}  gxh6 {[%clk 0:02:03]} 19. Qg4+ {[%clk 0:01:19]}  Kh8 {[%clk 0:01:25]} 20. Bxh6 {[%clk 0:01:05]}  Bf6 {[%clk 0:01:23]} 21. Qh5 {[%clk 0:00:48]}  Kg8 {[%clk 0:01:23]} 22. Qg4+ {[%clk 0:00:36]}  Kh7 {[%clk 0:01:14]} 23. Qh5 {[%clk 0:00:28]}  Be2 {[%clk 0:01:14]} 24. f3 {[%clk 0:00:18]}  Nxe5 {[%clk 0:01:01]} 25. dxe5 {[%clk 0:00:15]}  Rh8 {[%clk 0:00:52]} 26. exf6 {[%clk 0:00:13]}  Qxf6 {[%clk 0:00:53]} 27. Bg5+ {[%clk 0:00:12]}  Kg8 {[%clk 0:00:53]} 28. Qg4 {[%clk 0:00:11]}  Qg6 {[%clk 0:00:53]} 29. Rfe1 {[%clk 0:00:11]}  Nc6 {[%clk 0:00:49]} 30. Rxe2 {[%clk 0:00:11]}  f5 {[%clk 0:00:49]} 31. Qf4 {[%clk 0:00:11]}  e5 {[%clk 0:00:50]} 32. h5 {[%clk 0:00:04]}  Rxh5 {[%clk 0:00:50]} 33. g4 {[%clk 0:00:01]}  exf4 {[%clk 0:00:50]} 34. gxh5 {[%clk 0:00:01]}  Qxg5 {[%clk 0:00:51]} 0-1


[Site "https://www.chess.com"]

[Event "Titled Tuesday Blitz September 13 Early 2022"]
[White "Ginzburg, Yakov"]
[Black "Pranav, V"]
[WhiteFideId "4157176"]
[BlackFideId "25060783"]
[WhiteElo "2517"]
[BlackElo "2927"]
[Result "0-1"]
[Round "01"]
[TimeControl "180+1"]
[Date "2022.09.13"]
[WhiteClock "0:00:03"]
[BlackClock "0:02:29"]

1. e4 {[%clk 0:02:59]}  c5 {[%clk 0:02:59]} 2. Nf3 {[%clk 0:02:58]}  Nc6 {[%clk 0:02:59]} 3. d4 {[%clk 0:02:55]}  cxd4 {[%clk 0:03:00]} 4. Nxd4 {[%clk 0:02:55]}  Nf6 {[%clk 0:03:01]} 5. Nc3 {[%clk 0:02:54]}  e5 {[%clk 0:03:01]} 6. Ndb5 {[%clk 0:02:53]}  d6 {[%clk 0:03:01]} 7. Bg5 {[%clk 0:02:51]}  a6 {[%clk 0:03:00]} 8. Na3 {[%clk 0:02:51]}  b5 {[%clk 0:03:01]} 9. Nd5 {[%clk 0:02:50]}  Be7 {[%clk 0:03:01]} 10. Bxf6 {[%clk 0:02:49]}  Bxf6 {[%clk 0:03:02]} 11. c3 {[%clk 0:02:49]}  Bg5 {[%clk 0:03:01]} 12. Nc2 {[%clk 0:02:44]}  Ne7 {[%clk 0:03:01]} 13. h4 {[%clk 0:02:25]}  Bh6 {[%clk 0:03:01]} 14. Ncb4 {[%clk 0:02:11]}  O-O {[%clk 0:03:00]} 15. a4 {[%clk 0:01:56]}  bxa4 {[%clk 0:02:58]} 16. Rxa4 {[%clk 0:01:51]}  a5 {[%clk 0:02:58]} 17. Nxe7+ {[%clk 0:01:49]}  Qxe7 {[%clk 0:02:59]} 18. Nd5 {[%clk 0:01:42]}  Qb7 {[%clk 0:02:59]} 19. b4 {[%clk 0:01:36]}  axb4 {[%clk 0:02:54]} 20. Rxa8 {[%clk 0:01:25]}  Qxa8 {[%clk 0:02:55]} 21. cxb4 {[%clk 0:01:25]}  Be6 {[%clk 0:02:54]} 22. Bc4 {[%clk 0:01:18]}  Qa3 {[%clk 0:02:48]} 23. O-O {[%clk 0:00:53]}  Bxd5 {[%clk 0:02:46]} 24. Bxd5 {[%clk 0:00:50]}  Qxb4 {[%clk 0:02:46]} 25. g3 {[%clk 0:00:48]}  g6 {[%clk 0:02:45]} 26. Qd3 {[%clk 0:00:44]}  Kh8 {[%clk 0:02:38]} 27. Rb1 {[%clk 0:00:41]}  Qc5 {[%clk 0:02:37]} 28. Rb7 {[%clk 0:00:21]}  f5 {[%clk 0:02:37]} 29. exf5 {[%clk 0:00:09]}  Rxf5 {[%clk 0:02:30]} 30. Rb8+ {[%clk 0:00:08]}  Bf8 {[%clk 0:02:30]} 31. Rb2 {[%clk 0:00:04]}  Qc1+ {[%clk 0:02:29]} 32. Kg2 {[%clk 0:00:03]}  Qxb2 {[%clk 0:02:29]} 0-1


[Site "https://www.chess.com"]

[Event "Titled Tuesday Blitz September 13 Early 2022"]
[White "Golubev, Mikhail"]
[Black "Bortnyk, Olexandr"]
[WhiteFideId "14100983"]
[BlackFideId "14120828"]
[WhiteElo "2536"]
[BlackElo "3005"]
[Result "0-1"]
[Round "01"]
[TimeControl "180+1"]
[Date "2022.09.13"]
[WhiteClock "0:00:07"]
[BlackClock "0:00:53"]

1. e4 {[%clk 0:03:00]}  d6 {[%clk 0:02:59]} 2. d4 {[%clk 0:02:59]}  Nf6 {[%clk 0:03:00]} 3. Nc3 {[%clk 0:02:58]}  Nbd7 {[%clk 0:03:00]} 4. Nf3 {[%clk 0:02:56]}  e5 {[%clk 0:03:00]} 5. Bc4 {[%clk 0:02:54]}  Be7 {[%clk 0:03:00]} 6. a4 {[%clk 0:02:52]}  c6 {[%clk 0:03:00]} 7. O-O {[%clk 0:02:48]}  h6 {[%clk 0:03:00]} 8. Re1 {[%clk 0:02:40]}  Qc7 {[%clk 0:03:00]} 9. Ba2 {[%clk 0:02:23]}  Nf8 {[%clk 0:02:59]} 10. a5 {[%clk 0:02:10]}  Ng6 {[%clk 0:02:57]} 11. a6 {[%clk 0:02:04]}  bxa6 {[%clk 0:02:55]} 12. Bc4 {[%clk 0:01:55]}  O-O {[%clk 0:02:54]} 13. h3 {[%clk 0:01:40]}  Rb8 {[%clk 0:02:52]} 14. Bxa6 {[%clk 0:01:35]}  Bxa6 {[%clk 0:02:51]} 15. Rxa6 {[%clk 0:01:36]}  Rb6 {[%clk 0:02:45]} 16. Ra2 {[%clk 0:01:30]}  Rfb8 {[%clk 0:02:45]} 17. b3 {[%clk 0:01:16]}  R6b7 {[%clk 0:02:35]} 18. dxe5 {[%clk 0:01:10]}  dxe5 {[%clk 0:02:35]} 19. Ba3 {[%clk 0:00:57]}  Rd8 {[%clk 0:02:32]} 20. Qa1 {[%clk 0:00:52]}  Bxa3 {[%clk 0:02:32]} 21. Rxa3 {[%clk 0:00:52]}  Qe7 {[%clk 0:02:25]} 22. Ra4 {[%clk 0:00:48]}  Rbd7 {[%clk 0:02:18]} 23. Ne2 {[%clk 0:00:43]}  Nh5 {[%clk 0:02:08]} 24. Qc3 {[%clk 0:00:34]}  Qf6 {[%clk 0:01:55]} 25. Ra6 {[%clk 0:00:30]}  Rc8 {[%clk 0:01:47]} 26. Rea1 {[%clk 0:00:29]}  Nhf4 {[%clk 0:01:38]} 27. Nxf4 {[%clk 0:00:26]}  Nxf4 {[%clk 0:01:17]} 28. Qxe5 {[%clk 0:00:24]}  Nxh3+ {[%clk 0:01:18]} 29. Kf1 {[%clk 0:00:24]}  Rd2 {[%clk 0:01:19]} 30. Qxf6 {[%clk 0:00:14]}  Rxf2+ {[%clk 0:01:18]} 31. Ke1 {[%clk 0:00:14]}  gxf6 {[%clk 0:01:19]} 32. Nh4 {[%clk 0:00:13]}  Rf4 {[%clk 0:01:19]} 33. Nf5 {[%clk 0:00:12]}  Rxe4+ {[%clk 0:01:18]} 34. Kf1 {[%clk 0:00:11]}  Rf4+ {[%clk 0:01:16]} 35. Ke2 {[%clk 0:00:11]}  Re8+ {[%clk 0:01:15]} 36. Kd2 {[%clk 0:00:10]}  Rf2+ {[%clk 0:01:01]} 37. Kc3 {[%clk 0:00:09]}  Nf4 {[%clk 0:01:02]} 38. Nd4 {[%clk 0:00:09]}  c5 {[%clk 0:00:55]} 39. Nb5 {[%clk 0:00:08]}  Re3+ {[%clk 0:00:53]} 40. Kb2 {[%clk 0:00:08]}  Nd3+ {[%clk 0:00:53]} 41. Ka3 {[%clk 0:00:07]}  Nb4 {[%clk 0:00:53]} 0-1


[Site "https://www.chess.com"]

[Event "Titled Tuesday Blitz September 13 Early 2022"]
[White "Hansch, Karsten"]
[Black "Xiong, Jeffery"]
[WhiteFideId "24692239"]
[BlackFideId "2047640"]
[WhiteElo "2532"]
[BlackElo "2982"]
[Result "0-1"]
[Round "01"]
[TimeControl "180+1"]
[Date "2022.09.13"]
[WhiteClock "0:00:16"]
[BlackClock "0:00:05"]

1. e4 {[%clk 0:03:00]}  c5 {[%clk 0:02:44]} 2. Nf3 {[%clk 0:03:00]}  d6 {[%clk 0:02:34]} 3. d4 {[%clk 0:02:59]}  Nf6 {[%clk 0:02:32]} 4. Nc3 {[%clk 0:02:56]}  cxd4 {[%clk 0:02:32]} 5. Nxd4 {[%clk 0:02:55]}  a6 {[%clk 0:02:31]} 6. Bg5 {[%clk 0:02:55]}  Nbd7 {[%clk 0:02:30]} 7. Bc4 {[%clk 0:02:54]}  Qb6 {[%clk 0:02:29]} 8. Bb3 {[%clk 0:02:53]}  e6 {[%clk 0:02:29]} 9. Bxf6 {[%clk 0:02:52]}  Nxf6 {[%clk 0:02:29]} 10. Qd2 {[%clk 0:02:51]}  Bd7 {[%clk 0:02:26]} 11. O-O-O {[%clk 0:02:51]}  Rc8 {[%clk 0:02:26]} 12. f4 {[%clk 0:02:47]}  Qc5 {[%clk 0:02:26]} 13. Rhe1 {[%clk 0:02:40]}  Bc6 {[%clk 0:01:35]} 14. e5 {[%clk 0:01:32]}  Nd5 {[%clk 0:01:34]} 15. Nxc6 {[%clk 0:01:28]}  bxc6 {[%clk 0:01:32]} 16. Ne4 {[%clk 0:01:23]}  Qb6 {[%clk 0:01:30]} 17. exd6 {[%clk 0:01:16]}  Kd7 {[%clk 0:01:29]} 18. c4 {[%clk 0:01:12]}  Nf6 {[%clk 0:01:26]} 19. Nxf6+ {[%clk 0:01:05]}  gxf6 {[%clk 0:01:26]} 20. Qc3 {[%clk 0:01:05]}  Rg8 {[%clk 0:00:44]} 21. f5 {[%clk 0:00:45]}  Qf2 {[%clk 0:00:12]} 22. Qxf6 {[%clk 0:00:33]}  Qxf5 {[%clk 0:00:10]} 23. Qxf5 {[%clk 0:00:32]}  exf5 {[%clk 0:00:11]} 24. c5 {[%clk 0:00:32]}  Rg7 {[%clk 0:00:05]} 25. Rf1 {[%clk 0:00:31]}  Re8 {[%clk 0:00:02]} 26. Rxf5 {[%clk 0:00:30]}  Re2 {[%clk 0:00:02]} 27. Rd2 {[%clk 0:00:29]}  Rxd2 {[%clk 0:00:01]} 28. Kxd2 {[%clk 0:00:29]}  Rxg2+ {[%clk 0:00:02]} 29. Kc3 {[%clk 0:00:30]}  Bg7+ {[%clk 0:00:02]} 30. Kb4 {[%clk 0:00:29]}  Bxb2 {[%clk 0:00:01]} 31. Rxf7+ {[%clk 0:00:29]}  Kd8 {[%clk 0:00:01]} 32. Rxh7 {[%clk 0:00:29]}  Rg5 {[%clk 0:00:01]} 33. Be6 {[%clk 0:00:23]}  Bd4 {[%clk 0:00:01]} 34. Rd7+ {[%clk 0:00:22]}  Ke8 {[%clk 0:00:01]} 35. Re7+ {[%clk 0:00:22]}  Kd8 {[%clk 0:00:01]} 36. Ra7 {[%clk 0:00:16]}  Bxc5+ {[%clk 0:00:02]} 37. Kc4 {[%clk 0:00:16]}  Bxa7 {[%clk 0:00:03]} 38. h4 {[%clk 0:00:16]}  Rc5+ {[%clk 0:00:04]} 39. Kd3 {[%clk 0:00:16]}  Rh5 {[%clk 0:00:05]} 0-1


[Site "https://www.chess.com"]

[Event "Titled Tuesday Blitz September 13 Early 2022"]
[White "Horak, Martin"]
[Black "Kollars, Dmitrij"]
[WhiteFideId "367095"]
[BlackFideId "12909572"]
[WhiteElo "2500"]
[BlackElo "2879"]
[Result "0-1"]
[Round "01"]
[TimeControl "180+1"]
[Date "2022.09.13"]
[WhiteClock "0:00:05"]
[BlackClock "0:00:05"]

1. d4 {[%clk 0:02:56]}  Nf6 {[%clk 0:02:57]} 2. Bg5 {[%clk 0:02:54]}  Ne4 {[%clk 0:02:52]} 3. h4 {[%clk 0:02:54]}  h6 {[%clk 0:02:49]} 4. Bf4 {[%clk 0:02:54]}  Nc6 {[%clk 0:02:49]} 5. Nd2 {[%clk 0:02:50]}  Nf6 {[%clk 0:02:45]} 6. Ngf3 {[%clk 0:02:48]}  d6 {[%clk 0:02:41]} 7. e4 {[%clk 0:02:44]}  Bg4 {[%clk 0:02:36]} 8. Bb5 {[%clk 0:02:23]}  a6 {[%clk 0:02:32]} 9. Bxc6+ {[%clk 0:02:15]}  bxc6 {[%clk 0:02:33]} 10. c3 {[%clk 0:02:07]}  e6 {[%clk 0:02:24]} 11. Qa4 {[%clk 0:01:51]}  Qd7 {[%clk 0:02:24]} 12. O-O-O {[%clk 0:01:42]}  Bxf3 {[%clk 0:02:21]} 13. gxf3 {[%clk 0:01:40]}  c5 {[%clk 0:02:18]} 14. Qxd7+ {[%clk 0:01:39]}  Nxd7 {[%clk 0:02:19]} 15. Nb3 {[%clk 0:01:23]}  cxd4 {[%clk 0:02:14]} 16. cxd4 {[%clk 0:01:24]}  a5 {[%clk 0:02:13]} 17. Kb1 {[%clk 0:01:12]}  a4 {[%clk 0:02:12]} 18. Nd2 {[%clk 0:01:12]}  Be7 {[%clk 0:02:06]} 19. Rc1 {[%clk 0:01:12]}  Ra7 {[%clk 0:02:01]} 20. h5 {[%clk 0:01:07]}  O-O {[%clk 0:02:00]} 21. Rc2 {[%clk 0:00:59]}  c5 {[%clk 0:01:53]} 22. dxc5 {[%clk 0:00:57]}  Nxc5 {[%clk 0:01:54]} 23. Nc4 {[%clk 0:00:56]}  Ra6 {[%clk 0:01:35]} 24. Rd1 {[%clk 0:00:53]}  Nb7 {[%clk 0:01:35]} 25. Rcd2 {[%clk 0:00:48]}  Rd8 {[%clk 0:01:32]} 26. Rd3 {[%clk 0:00:24]}  Rc6 {[%clk 0:01:28]} 27. Ne3 {[%clk 0:00:16]}  Rdc8 {[%clk 0:01:21]} 28. R3d2 {[%clk 0:00:15]}  Nc5 {[%clk 0:01:17]} 29. Bxd6 {[%clk 0:00:11]}  Kf8 {[%clk 0:01:06]} 30. Bxe7+ {[%clk 0:00:09]}  Kxe7 {[%clk 0:01:07]} 31. Ng4 {[%clk 0:00:05]}  f6 {[%clk 0:01:00]} 32. Ne3 {[%clk 0:00:05]}  R8c7 {[%clk 0:00:58]} 33. Rg1 {[%clk 0:00:05]}  Kf7 {[%clk 0:00:56]} 34. Rgd1 {[%clk 0:00:06]}  Ke7 {[%clk 0:00:54]} 35. Rg1 {[%clk 0:00:06]}  Kf7 {[%clk 0:00:48]} 36. Rgd1 {[%clk 0:00:07]}  Kf8 {[%clk 0:00:32]} 37. Rd4 {[%clk 0:00:06]}  Ke7 {[%clk 0:00:31]} 38. R4d2 {[%clk 0:00:06]}  Nd7 {[%clk 0:00:30]} 39. Rg1 {[%clk 0:00:05]}  Kf7 {[%clk 0:00:29]} 40. Rgd1 {[%clk 0:00:06]}  Ke8 {[%clk 0:00:21]} 41. Rd6 {[%clk 0:00:05]}  Ke7 {[%clk 0:00:15]} 42. R6d2 {[%clk 0:00:04]}  Ne5 {[%clk 0:00:15]} 43. f4 {[%clk 0:00:04]}  Nc4 {[%clk 0:00:16]} 44. Nxc4 {[%clk 0:00:04]}  Rxc4 {[%clk 0:00:17]} 45. Rd4 {[%clk 0:00:04]}  R7c5 {[%clk 0:00:09]} 46. Rxc4 {[%clk 0:00:04]}  Rxc4 {[%clk 0:00:10]} 47. f3 {[%clk 0:00:04]}  f5 {[%clk 0:00:09]} 48. Re1 {[%clk 0:00:03]}  Kf6 {[%clk 0:00:09]} 49. Re2 {[%clk 0:00:01]}  g6 {[%clk 0:00:06]} 50. Re3 {[%clk 0:00:02]}  gxh5 {[%clk 0:00:06]} 51. Re2 {[%clk 0:00:02]}  h4 {[%clk 0:00:04]} 52. e5+ {[%clk 0:00:01]}  Kg6 {[%clk 0:00:04]} 53. Rh2 {[%clk 0:00:01]}  Rxf4 {[%clk 0:00:03]} 54. b3 {[%clk 0:00:02]}  axb3 {[%clk 0:00:03]} 55. axb3 {[%clk 0:00:03]}  Kg5 {[%clk 0:00:03]} 56. Kb2 {[%clk 0:00:03]}  Rxf3 {[%clk 0:00:03]} 57. Rg2+ {[%clk 0:00:04]}  Kf4 {[%clk 0:00:03]} 58. Rg6 {[%clk 0:00:04]}  h5 {[%clk 0:00:03]} 59. Rxe6 {[%clk 0:00:04]}  h3 {[%clk 0:00:04]} 60. Rh6 {[%clk 0:00:04]}  Kg5 {[%clk 0:00:04]} 61. Rh8 {[%clk 0:00:04]}  h2 {[%clk 0:00:05]} 62. Rg8+ {[%clk 0:00:05]}  Kh4 {[%clk 0:00:05]} 63. e6 {[%clk 0:00:05]}  Rf2+ {[%clk 0:00:05]} 0-1


[Site "https://www.chess.com"]

[Event "Titled Tuesday Blitz September 13 Early 2022"]
[White "Kamsky, Gata"]
[Black "Tasev, Dejan"]
[WhiteFideId "2000024"]
[BlackFideId "936618"]
[WhiteElo "2963"]
[BlackElo "2530"]
[Result "1-0"]
[Round "01"]
[TimeControl "180+1"]
[Date "2022.09.13"]
[WhiteClock "0:00:17"]
[BlackClock "0:00:13"]

1. d4 {[%clk 0:03:00]}  Nf6 {[%clk 0:02:58]} 2. Bf4 {[%clk 0:02:59]}  e6 {[%clk 0:02:58]} 3. e3 {[%clk 0:02:59]}  b6 {[%clk 0:02:59]} 4. Nf3 {[%clk 0:02:58]}  Bb7 {[%clk 0:02:59]} 5. a4 {[%clk 0:02:58]}  a6 {[%clk 0:02:59]} 6. h3 {[%clk 0:02:56]}  h6 {[%clk 0:02:59]} 7. Nbd2 {[%clk 0:02:56]}  d6 {[%clk 0:02:59]} 8. Bh2 {[%clk 0:02:55]}  Nbd7 {[%clk 0:02:58]} 9. Bd3 {[%clk 0:02:55]}  g5 {[%clk 0:02:56]} 10. c3 {[%clk 0:02:47]}  g4 {[%clk 0:02:53]} 11. hxg4 {[%clk 0:02:46]}  Nxg4 {[%clk 0:02:53]} 12. Bg3 {[%clk 0:02:46]}  Rg8 {[%clk 0:02:53]} 13. Qe2 {[%clk 0:02:42]}  Be7 {[%clk 0:02:47]} 14. Be4 {[%clk 0:02:28]}  d5 {[%clk 0:02:31]} 15. Bd3 {[%clk 0:02:23]}  Bd6 {[%clk 0:02:30]} 16. Bxd6 {[%clk 0:02:16]}  cxd6 {[%clk 0:02:30]} 17. g3 {[%clk 0:02:05]}  Qf6 {[%clk 0:02:15]} 18. e4 {[%clk 0:01:48]}  dxe4 {[%clk 0:01:46]} 19. Bxe4 {[%clk 0:01:47]}  d5 {[%clk 0:01:42]} 20. Bd3 {[%clk 0:01:46]}  Kf8 {[%clk 0:01:18]} 21. O-O-O {[%clk 0:01:43]}  e5 {[%clk 0:01:13]} 22. dxe5 {[%clk 0:01:27]}  Ndxe5 {[%clk 0:01:12]} 23. Nxe5 {[%clk 0:01:24]}  Nxe5 {[%clk 0:01:11]} 24. Bc2 {[%clk 0:00:44]}  Rc8 {[%clk 0:01:06]} 25. Rh4 {[%clk 0:00:41]}  b5 {[%clk 0:00:32]} 26. axb5 {[%clk 0:00:36]}  axb5 {[%clk 0:00:33]} 27. Qxb5 {[%clk 0:00:30]}  Qc6 {[%clk 0:00:25]} 28. Qxc6 {[%clk 0:00:29]}  Rxc6 {[%clk 0:00:25]} 29. Nb3 {[%clk 0:00:25]}  Ng4 {[%clk 0:00:23]} 30. Rxd5 {[%clk 0:00:21]}  Nxf2 {[%clk 0:00:22]} 31. Rd8+ {[%clk 0:00:20]}  Ke7 {[%clk 0:00:22]} 32. Rxg8 {[%clk 0:00:20]}  Re6 {[%clk 0:00:16]} 33. Nd4 {[%clk 0:00:19]}  Re1+ {[%clk 0:00:15]} 34. Kd2 {[%clk 0:00:19]}  Rg1 {[%clk 0:00:15]} 35. Rh2 {[%clk 0:00:17]}  Ne4+ {[%clk 0:00:12]} 36. Bxe4 {[%clk 0:00:17]}  Bxe4 {[%clk 0:00:13]} 37. Re2 {[%clk 0:00:17]} 1-0


[Site "https://www.chess.com"]